fUST/lending_fUST_20250106
["ID","MTS","AMOUNT","RATE_DAILY","PERIOD"]
[347774710,1736099254396,-500.0,0.00021036,3]
[347774711,1736099254423,-292.18643806,0.00021036,3]
[347774712,1736099346109,-500.0,0.00019816,3]
[347774713,1736099346130,-500.0,0.00019816,3]
[347774714,1736099346151,-396.18687621,0.00019816,3]
[347774715,1736099346172,-500.0,0.00019816,3]
[347774716,1736099346195,-500.0,0.00019816,3]
[347774717,1736099346216,-500.0,0.00019816,3]
[347774718,1736099346237,-500.0,0.00019816,3]
[347774719,1736099346258,-500.0,0.00019816,3]
[347774720,1736099346280,-500.0,0.00019816,3]
[347774721,1736099346300,-500.0,0.00019816,3]
[347774722,1736099346323,-500.0,0.00019816,3]
[347774723,1736099346345,-500.0,0.00019816,3]
[347774724,1736099346365,-500.0,0.00019816,3]
[347774725,1736099346388,-500.0,0.00019816,3]
[347774726,1736099346409,-500.0,0.00019816,3]
[347774727,1736099346430,-500.0,0.00019816,3]
[347774728,1736099346455,-640.1912886,0.00019816,3]
[347774729,1736099346476,-500.0,0.00019816,3]
[347774730,1736099346498,-500.0,0.00019816,3]
[347774731,1736099346520,-207.81356194,0.00019816,3]
[347774732,1736099346540,-500.0,0.00019816,3]
[347774733,1736099346564,-500.0,0.00019816,3]
[347774734,1736099346584,-500.0,0.00019816,3]
[347774735,1736099346605,-500.0,0.00019816,3]
[347774736,1736099346626,-500.0,0.00019816,3]
[347774737,1736099346646,-411.64844619,0.00019816,3]
[347774738,1736099346667,-500.0,0.00019816,3]
[347774739,1736099346687,-500.0,0.00019816,3]
[347774740,1736099346708,-500.0,0.00019816,3]
[347774741,1736099346729,-500.0,0.00019816,3]
[347774742,1736099346750,-500.0,0.00019816,3]
[347774743,1736099346773,-500.0,0.0002009,3]
[347774744,1736099346796,-201.8,0.0002009,3]
[347774745,1736099346822,-500.0,0.0002009,3]
[347774746,1736099346842,-500.0,0.0002009,3]
[347774747,1736099346863,-500.0,0.0002032,3]
[347774748,1736099346884,-500.0,0.0002032,3]
[347774749,1736099346904,-500.0,0.0002032,3]
[347774750,1736099346926,-500.0,0.0002032,3]
[347774751,1736099346947,-444.2,0.00020364,3]
[347774752,1736099346968,-500.0,0.00020364,3]
[347774753,1736099346988,-500.0,0.00020364,3]
[347774754,1736099347008,-500.0,0.00020594,3]
[347774755,1736099347030,-299.07299706,0.00020638,3]
[347774756,1736099350169,-300.0,0.00019815,2]
[347774757,1736099350190,-263.35654077,0.00019816,3]
[347774758,1736099357160,-236.64345923,0.00019816,3]
[347774759,1736099357185,-500.0,0.00019816,3]
[347774760,1736099357207,-500.0,0.00019816,3]
[347774761,1736099357231,-597.2,0.0002009,3]
[347774762,1736099357715,190.98072869,0.00019816,3]
[347774763,1736099370113,-194.2811157,0.00019816,3]
[347774806,1736099432848,-300.0,0.00019815,2]
[347774808,1736099432858,-114.73815561,0.00019816,3]
[347774810,1736099432867,-73.69184439,0.00019816,3]
[347774816,1736099432908,-461.30815561,0.00019816,3]
[347774818,1736099432918,-500.0,0.00019816,3]
[347774820,1736099432927,-500.0,0.00019816,3]
[347774822,1736099432936,-500.0,0.00019816,3]
[347774824,1736099432946,-500.0,0.00019816,3]
[347774826,1736099432955,-500.0,0.00019816,3]
[347774828,1736099432964,-500.0,0.00019816,3]
[347774830,1736099432974,-500.0,0.00019816,3]
[347774832,1736099432984,-500.0,0.00019816,3]
[347774834,1736099432993,-500.0,0.00019816,3]
[347774836,1736099433002,-500.0,0.00019816,3]
[347774838,1736099433011,-502.20169244,0.00019816,3]
[347774840,1736099433020,-501.20264461,0.00019816,3]
[347774842,1736099433030,-410.26937372,0.00019816,3]
[347774844,1736099433040,-500.0,0.00019816,3]
[347774847,1736099433049,-500.0,0.00019816,3]
[347774849,1736099433059,-500.0,0.00019816,3]
[347774852,1736099433069,-500.0,0.00019816,3]
[347774854,1736099433079,-500.0,0.00019816,3]
[347774856,1736099433088,-500.0,0.00019816,3]
[347774858,1736099433098,-619.49,0.0002009,3]
[347774860,1736099433107,-608.32,0.0002009,3]
[347774862,1736099433116,-500.0,0.0002009,3]
[347774864,1736099433126,-500.0,0.0002032,3]
[347774866,1736099433136,-500.0,0.0002032,3]
[347774868,1736099433145,-500.0,0.0002032,3]
[347774870,1736099433155,-500.0,0.0002032,3]
[347774872,1736099433164,-500.0,0.0002032,3]
[347774874,1736099433174,-500.0,0.0002032,3]
[347774876,1736099433184,-500.0,0.0002032,3]
[347774877,1736099433194,-500.0,0.00020364,3]
[347774879,1736099433203,-500.0,0.00020594,3]
[347774881,1736099433213,-200.92700294,0.00020638,3]
[347774883,1736099433223,-334.48,0.00020638,3]
[347774885,1736099433232,-500.0,0.00020868,3]
[347774887,1736099433241,-214.54,0.00020912,3]
[347774889,1736099433250,-500.0,0.00021035,3]
[347774891,1736099433260,-154.27,0.00021036,2]
[347774893,1736099433270,-500.0,0.00021036,3]
[347774895,1736099433280,-500.0,0.00021036,3]
[347774897,1736099433289,-500.0,0.00021036,3]
[347774899,1736099433299,-56.16934852,0.00021036,3]
[347774901,1736099433311,-443.83065148,0.00021036,3]
[347774903,1736099433321,-500.0,0.00021036,3]
[347774905,1736099433331,-503.78005844,0.00021036,3]
[347774907,1736099433340,-500.0,0.00021036,3]
[347774909,1736099433350,-500.0,0.00021036,3]
[347774911,1736099433359,-500.0,0.00021036,3]
[347774913,1736099433369,-500.0,0.00021036,3]
[347774915,1736099433380,-500.0,0.00021036,3]
[347774917,1736099433390,-500.0,0.00021036,3]
[347774919,1736099433400,-500.0,0.00021036,3]
[347774921,1736099433410,-500.0,0.00021036,3]
[347774923,1736099433419,-4184.71,0.00021036,3]
[347774925,1736099433429,-517.31,0.00021036,3]
[347774927,1736099433438,-500.24047302,0.00021037,3]
[347774928,1736099433448,-320.79362068,0.00021037,3]
[347774929,1736099433457,-500.81546027,0.00021037,3]
[347774931,1736099433471,-500.61682899,0.00021037,3]
[347774933,1736099433481,-520.23661617,0.00021037,3]
[347774935,1736099433490,-500.0,0.00021037,3]
[347774937,1736099433499,-500.0,0.00021037,3]
[347774938,1736099433518,-500.0,0.00021037,3]
[347774941,1736099433530,-500.0,0.00021037,3]
[347774943,1736099433540,-500.0,0.00021037,3]
[347774945,1736099433550,-500.0,0.00021037,3]
[347774947,1736099433560,-500.0,0.00021037,3]
[347774949,1736099433571,-285.52401101,0.00021037,3]
[347774950,1736099433581,-500.0,0.00021037,3]
[347774951,1736099433591,-500.0,0.00021037,3]
[347774952,1736099433601,-500.0,0.00021037,3]
[347774953,1736099433610,-500.0,0.00021037,3]
[347774954,1736099433621,-500.0,0.00021037,3]
[347774955,1736099433631,-575.76280407,0.00021037,3]
[347774956,1736099433640,-500.0,0.00021037,3]
[347774957,1736099433651,-500.0,0.00021037,3]
[347774958,1736099433660,-500.0,0.00021037,3]
[347774959,1736099433670,-500.0,0.00021037,3]
[347774960,1736099433680,-500.0,0.00021037,3]
[347774961,1736099433691,-500.0,0.00021037,3]
[347774962,1736099433702,-500.0,0.00021037,3]
[347774963,1736099433712,-500.0,0.00021037,3]
[347774964,1736099433722,-500.0,0.00021037,3]
[347774965,1736099433732,-500.0,0.00021037,3]
[347774966,1736099433742,-500.0,0.00021037,3]
[347774967,1736099433752,-500.0,0.00021037,3]
[347774968,1736099433764,-500.0,0.00021037,3]
[347774969,1736099433774,-500.0,0.00021037,3]
[347774970,1736099433784,-386.40695908,0.00021037,3]
[347774971,1736099433795,-500.0,0.00021037,3]
[347774972,1736099433957,-500.0,0.00021037,3]
[347774973,1736099433967,-500.0,0.00021037,3]
[347774974,1736099433977,-320.30710115,0.00021037,3]
[347774975,1736099433991,-179.69289885,0.00021037,3]
[347774976,1736099434002,-500.0,0.00021037,3]
[347774977,1736099434012,-500.0,0.00021037,3]
[347774978,1736099434022,-500.0,0.00021037,3]
[347774979,1736099434033,-500.0,0.00021037,3]
[347774980,1736099434043,-500.0,0.00021037,3]
[347774981,1736099434053,-500.0,0.00021037,3]
[347774982,1736099434063,-500.0,0.00021037,3]
[347774983,1736099434073,-500.0,0.00021037,3]
[347774984,1736099434083,-500.0,0.00021037,3]
[347774985,1736099434094,-500.0,0.00021037,3]
[347774986,1736099434104,-500.0,0.00021037,3]
[347774987,1736099434114,-500.0,0.00021037,3]
[347774988,1736099434124,-500.0,0.00021037,3]
[347774989,1736099434135,-500.0,0.00021037,3]
[347774990,1736099434145,-500.0,0.00021039,2]
[347774991,1736099434154,-160.434087,0.00021044,2]
[347774992,1736099434164,-1084.94,0.00021049,3]
[347774993,1736099434173,-500.0,0.00021049,3]
[347774994,1736099434183,-500.0,0.00021057,3]
[347774995,1736099434193,-500.0,0.00021057,3]
[347774996,1736099434203,-500.0,0.00021057,3]
[347774997,1736099434213,-500.0,0.00021057,3]
[347774998,1736099434223,-500.0,0.00021057,3]
[347774999,1736099434233,-500.0,0.00021057,3]
[347775000,1736099434242,-500.0,0.00021057,3]
[347775001,1736099434252,-500.0,0.00021057,3]
[347775002,1736099434261,-438.91064305,0.00021057,3]
[347775003,1736099434271,-500.0,0.00021057,3]
[347775004,1736099434281,-500.0,0.00021057,3]
[347775005,1736099434290,-350.30459251,0.00021057,3]
[347775006,1736099434300,-500.0,0.00021057,3]
[347775007,1736099434309,-500.0,0.00021057,3]
[347775008,1736099434319,-500.0,0.00021057,3]
[347775009,1736099434329,-437.11290476,0.00021057,3]
[347775010,1736099434338,-500.0,0.00021057,3]
[347775011,1736099434348,-500.0,0.00021057,3]
[347775012,1736099434358,-500.0,0.00021057,3]
[347775013,1736099434368,-500.0,0.00021057,3]
[347775014,1736099434377,-500.0,0.00021057,3]
[347775015,1736099434389,-188.0,0.00021057,2]
[347775016,1736099434398,-500.0,0.00021057,3]
[347775017,1736099434407,-500.0,0.00021057,3]
[347775018,1736099434417,-500.0,0.00021057,3]
[347775019,1736099434428,-500.0,0.00021057,3]
[347775020,1736099434439,-500.0,0.00021057,3]
[347775021,1736099434448,-502.40030029,0.00021057,3]
[347775022,1736099434458,-500.0,0.00021057,3]
[347775023,1736099434471,-500.0,0.00021057,3]
[347775024,1736099434481,-500.0,0.00021057,3]
[347775025,1736099434490,-500.0,0.00021057,3]
[347775026,1736099434500,-219.5755841,0.00021057,3]
[347775027,1736099434509,-500.0,0.00021057,3]
[347775028,1736099434519,-500.0,0.00021057,3]
[347775029,1736099434527,-500.0,0.00021057,3]
[347775030,1736099434537,-501.14427851,0.00021057,3]
[347775031,1736099434546,-500.0,0.00021057,3]
[347775032,1736099434555,-500.0,0.00021057,3]
[347775033,1736099434564,-500.0,0.00021057,3]
[347775034,1736099434574,-500.0,0.00021057,3]
[347775035,1736099434583,-503.62908198,0.00021057,3]
[347775036,1736099434592,-500.0,0.00021057,3]
[347775037,1736099434602,-500.0,0.00021057,3]
[347775038,1736099434611,-254.99018142,0.00021057,3]
[347775039,1736099434620,-500.0,0.00021058,3]
[347775040,1736099434629,-888.76,0.00021059,3]
[347775041,1736099434642,-500.0,0.00021142,3]
[347775042,1736099434651,-542.6,0.00021143,3]
[347775043,1736099434660,-500.0,0.00021143,3]
[347775044,1736099434670,-250.0,0.00021149,2]
[347775045,1736099434679,-748.62,0.00021186,3]
[347775046,1736099434689,-610.52,0.00021186,3]
[347775047,1736099434698,-500.0,0.0002131,3]
[347775048,1736099434707,-4184.71,0.0002131,3]
[347775049,1736099434717,-500.0,0.00021311,3]
[347775050,1736099434726,-500.0,0.00021311,3]
[347775051,1736099434735,-512.74,0.00021313,2]
[347775052,1736099434744,-229.0241118,0.00021315,2]
[347775053,1736099434754,-153.693575,0.00021315,2]
[347775054,1736099434763,-421.1403735,0.00021315,2]
[347775055,1736099434772,-214.5892987,0.00021315,2]
[347775056,1736099434781,-153.3765371,0.00021315,2]
[347775057,1736099434791,-1084.94,0.00021323,3]
[347775058,1736099434800,-500.0,0.00021331,3]
[347775059,1736099434809,-153.693575,0.000214,2]
[347775060,1736099434819,-214.5892987,0.000214,2]
[347775061,1736099434828,-319.13329512,0.00021416,3]
[347775062,1736099434837,-542.6,0.00021417,3]
[347775063,1736099434847,-500.0,0.00021417,3]
[347775064,1736099434856,-748.62,0.0002146,3]
[347775065,1736099434866,-610.52,0.0002146,3]
[347775066,1736099434875,-420.0,0.0002158,2]
[347775067,1736099434887,-193.09897928,0.00021583,2]
[347775068,1736099434898,-4184.71,0.00021584,3]
[347775069,1736099434907,-500.0,0.00021585,3]
[347775070,1736099434917,-1084.94,0.00021597,3]
[347775071,1736099434927,-927.4,0.00021607,3]
[347775072,1736099434937,-542.6,0.00021691,3]
[347775073,1736099434947,-500.0,0.00021691,3]
[347775074,1736099434956,-613.01,0.000217,2]
[347775075,1736099434965,-748.62,0.00021734,3]
[347775076,1736099434977,-610.52,0.00021734,3]
[347775077,1736099434987,-390.425,0.0002178,2]
[347775078,1736099434997,-4184.71,0.00021858,3]
[347775079,1736099435006,-500.0,0.00021859,3]
[347775080,1736099435016,-1084.94,0.00021871,3]
[347775081,1736099435026,-927.4,0.00021881,3]
[347775082,1736099435036,-542.6,0.00021965,3]
[347775083,1736099435046,-500.0,0.00021965,3]
[347775084,1736099435055,-160.0,0.00022,2]
[347775085,1736099435065,-748.62,0.00022008,3]
[347775086,1736099435074,-610.52,0.00022008,3]
[347775087,1736099435084,-4184.71,0.00022132,3]
[347775088,1736099435093,-500.0,0.00022133,3]
[347775089,1736099435102,-1084.94,0.00022145,3]
[347775090,1736099435112,-542.6,0.00022239,3]
[347775091,1736099435121,-500.0,0.00022239,3]
[347775092,1736099435130,-748.62,0.00022282,3]
[347775093,1736099435141,-610.52,0.00022282,3]
[347775094,1736099435151,-4184.71,0.00022406,3]
[347775095,1736099435161,-1084.94,0.00022419,3]
[347775096,1736099435170,-542.6,0.00022513,3]
[347775097,1736099435179,-457.52741901,0.00022513,3]
[347775098,1736099435189,-748.62,0.00022556,3]
[347775099,1736099435198,-610.52,0.00022556,3]
[347775100,1736099435207,-4184.71,0.0002268,3]
[347775101,1736099435217,-1084.94,0.00022693,3]
[347775102,1736099435227,-153.45,0.000227,31]
[347775103,1736099435236,-153.45,0.000227,31]
[347775104,1736099435246,-153.45,0.000227,31]
[347775105,1736099435255,-153.45,0.000227,31]
[347775106,1736099435264,-153.45,0.000227,31]
[347775107,1736099435273,-153.45,0.000227,31]
[347775108,1736099435283,-153.45,0.000227,31]
[347775109,1736099435293,-216.9645596,0.00022703,2]
[347775110,1736099435304,-20974.3064221,0.00022719,2]
[347775111,1736099435318,-5702.46626156,0.00022719,2]
[347775112,1736099435329,-999.7066692,0.00022719,2]
[347775113,1736099435345,-283.34702994,0.00022719,2]
[347775180,1736099438615,-1979.77276785,0.00022719,2]
[347775187,1736099438674,-10365.25501736,0.00022719,2]
[347775189,1736099438684,-542.6,0.00022787,3]
[347775191,1736099438694,-1092.277048,0.000228,2]
[347775192,1736099438703,-610.52,0.0002283,3]
[347775193,1736099438713,-151.0,0.00022929,7]
[347775194,1736099438722,-151.0,0.00022929,7]
[347775195,1736099438732,-151.0,0.00022929,7]
[347775196,1736099438741,-151.0,0.00022929,7]
[347775198,1736099438750,-151.0,0.00022929,7]
[347775200,1736099438760,-204.060675,0.00022929,7]
[347775202,1736099438769,-151.0,0.00022929,7]
[347775204,1736099438778,-151.0,0.00022929,7]
[347775206,1736099438787,-151.0,0.00022929,7]
[347775208,1736099438796,-151.0,0.00022929,7]
[347775210,1736099438805,-231.10516,0.00022929,7]
[347775212,1736099438816,-151.0,0.00022933,7]
[347775214,1736099438826,-151.0,0.00022933,7]
[347775216,1736099438835,-151.0,0.00022933,2]
[347775218,1736099438845,-151.0,0.00022933,2]
[347775221,1736099438855,-151.0,0.00022933,2]
[347775223,1736099438864,-224.39614,0.00022933,2]
[347775225,1736099438873,-151.0,0.00022933,7]
[347775227,1736099438882,-151.0,0.00022933,7]
[347775228,1736099438895,-151.0,0.00022933,7]
[347775229,1736099438905,-150.09,0.00022933,10]
[347775230,1736099438914,-150.09,0.00022933,10]
[347775231,1736099438924,-287.51283994,0.00022942,2]
[347775232,1736099438933,-151.0,0.00022943,7]
[347775233,1736099438944,-151.0,0.00022943,7]
[347775234,1736099438954,-151.0,0.00022943,7]
[347775235,1736099438963,-151.0,0.00022943,7]
[347775236,1736099438972,-151.0,0.00022943,7]
[347775237,1736099438981,-165.069364,0.00022943,7]
[347775238,1736099438990,-151.0,0.00022943,7]
[347775239,1736099439000,-443.15036492,0.00022943,2]
[347775240,1736099439010,-252186.13793449,0.00022943,10]
[347775241,1736099439022,-7547.18517786,0.00022943,10]
[347775242,1736099439034,-1000.0,0.00022943,10]
[347775243,1736099439045,-928.3289022,0.00022943,10]
[347775244,1736099439057,-1145.37597596,0.00022943,10]
[347775245,1736099439068,-14371.57218975,0.00022943,10]
[347775246,1736099439080,-1536.0964321,0.00022943,10]
[347775247,1736099439091,-35460.28269695,0.00022943,10]
[347775248,1736099439103,-34798.25,0.00022943,10]
[347775250,1736099440319,-44794.14155676,0.00022943,10]
[347775292,1736099440795,-500.0,0.00019816,3]
[347775294,1736099440804,-500.0,0.0002009,3]
[347775296,1736099440814,-500.0,0.00020364,3]
[347775298,1736099440824,-500.0,0.00020638,3]
[347775300,1736099440834,-500.0,0.00020912,3]
[347775303,1736099440843,-500.0,0.00021186,3]
[347775305,1736099440853,-500.0,0.0002146,3]
[347775307,1736099440862,-1572.88,0.00022943,10]
[347775312,1736099440904,-500.0,0.00021734,3]
[347775314,1736099440914,-178.38708228,0.00022943,10]
[347775389,1736099443747,-442.71028171,0.00022008,3]
[347775391,1736099443760,-57.28971829,0.00022008,3]
[347775393,1736099443769,-500.0,0.00022282,3]
[347775395,1736099443779,-500.0,0.00022556,3]
[347775397,1736099443788,-500.0,0.0002283,3]
[347775399,1736099443798,-5627.32819225,0.00022943,10]
[347775714,1736099446733,-160.0,0.00022,2]
[347775716,1736099446743,-1341.19408585,0.00022943,10]
[347776157,1736099552546,160.936982,0.00013973,2]
[347776165,1736100405159,-161.821478,0.00019178,2]
[347776166,1736100405180,-12.78691547,0.00019616,2]
[347776167,1736100431213,-463.74394087,0.00019814,2]
[347776168,1736100440123,-2114.25605913,0.00019814,2]
[347776169,1736100440145,-300.0,0.00019814,2]
[347776170,1736100440167,-166.449,0.00019815,2]
[347776171,1736100440188,-500.0,0.00019815,3]
[347776172,1736100440210,-500.0,0.00019815,3]
[347776173,1736100440235,-500.0,0.00019815,3]
[347776174,1736100440258,-500.0,0.00019815,3]
[347776175,1736100440281,-500.0,0.00019815,3]
[347776176,1736100440390,-500.0,0.00019815,3]
[347776177,1736100440440,-500.0,0.00019815,3]
[347776178,1736100440462,-500.0,0.00019815,3]
[347776179,1736100440485,-500.0,0.00019815,3]
[347776180,1736100440508,-518.96,0.00019815,3]
[347776181,1736100440531,-500.0,0.00019815,3]
[347776182,1736100440553,-500.0,0.00019815,3]
[347776183,1736100440578,-502.67,0.00019815,3]
[347776184,1736100440603,-500.0,0.00019815,3]
[347776185,1736100440627,-500.0,0.00019815,3]
[347776186,1736100440650,-500.0,0.00019815,3]
[347776187,1736100440673,-500.0,0.00019815,3]
[347776188,1736100440695,-500.0,0.00019815,3]
[347776189,1736100440717,-500.0,0.00019815,3]
[347776190,1736100440741,-500.0,0.00019815,3]
[347776191,1736100440763,-2964.17,0.00019815,3]
[347776192,1736100440786,-500.0,0.00019815,3]
[347776193,1736100440810,-500.0,0.00019815,3]
[347776194,1736100440831,-500.0,0.00019815,3]
[347776195,1736100440853,-500.0,0.00019815,3]
[347776196,1736100440874,-500.0,0.00019815,3]
[347776197,1736100440896,-500.0,0.00019815,3]
[347776198,1736100440917,-500.0,0.00019815,3]
[347776199,1736100440940,-500.0,0.00019815,3]
[347776200,1736100440964,-500.0,0.00019815,3]
[347776201,1736100440986,-500.0,0.00019815,3]
[347776202,1736100441008,-500.0,0.00019815,3]
[347776203,1736100441032,-500.0,0.00019815,3]
[347776204,1736100441060,-500.0,0.00019815,3]
[347776205,1736100441081,-500.0,0.00019815,3]
[347776206,1736100441103,-500.0,0.00019815,3]
[347776207,1736100441125,-500.0,0.00019815,3]
[347776208,1736100441148,-384.17595814,0.00019815,3]
[347776209,1736100441169,-500.0,0.00019815,3]
[347776210,1736100441194,-503.78216116,0.00019815,3]
[347776211,1736100441215,-500.0,0.00019816,3]
[347776212,1736100441237,-500.0,0.00019816,3]
[347776213,1736100441259,-500.0,0.00019816,3]
[347776214,1736100441282,-500.0,0.00019816,3]
[347776215,1736100441307,-501.12239895,0.00019816,3]
[347776216,1736100441328,-502.82156765,0.00019816,3]
[347776217,1736100441351,-508.99056702,0.00019816,3]
[347776218,1736100441372,-500.0,0.00019816,3]
[347776219,1736100441394,-504.71305277,0.00019816,3]
[347776220,1736100441416,-501.56196216,0.00019816,3]
[347776221,1736100441438,-500.0,0.00019816,3]
[347776222,1736100441458,-508.64837899,0.00019816,3]
[347776223,1736100441479,-501.9637127,0.00019816,3]
[347776224,1736100441500,-500.0,0.00019816,3]
[347776225,1736100441521,-500.0,0.00019816,3]
[347776226,1736100441542,-500.0,0.00019816,3]
[347776227,1736100441563,-472.45511932,0.00019816,3]
[347776228,1736100441584,-555.28616473,0.00019816,3]
[347776229,1736100441607,-500.0,0.00019816,3]
[347776230,1736100441627,-500.0,0.00019816,3]
[347776231,1736100441648,-500.0,0.00019816,3]
[347776232,1736100441668,-500.0,0.00019816,3]
[347776233,1736100441689,-500.0,0.00019816,3]
[347776234,1736100441711,-500.0,0.00019816,3]
[347776235,1736100441732,-500.0,0.00019816,3]
[347776236,1736100441754,-500.0,0.00019816,3]
[347776237,1736100441775,-500.0,0.00019816,3]
[347776238,1736100441796,-516.47227959,0.00019816,3]
[347776239,1736100441820,-500.0,0.00019816,3]
[347776240,1736100441841,-500.0,0.00019816,3]
[347776241,1736100441864,-518.81590967,0.00019816,3]
[347776242,1736100441888,-502.8024777,0.00019816,3]
[347776243,1736100441911,-500.0,0.00019816,3]
[347776244,1736100441933,-500.0,0.00019816,3]
[347776245,1736100441955,-500.0,0.00019816,3]
[347776246,1736100441977,-185.31270212,0.00019816,3]
[347776247,1736100441998,-500.0,0.00019816,3]
[347776248,1736100442019,-500.0,0.00019816,3]
[347776249,1736100442041,-500.0,0.00019816,3]
[347776250,1736100442064,-500.0,0.00019816,3]
[347776251,1736100442085,-463.41411636,0.00019816,3]
[347776252,1736100442107,-500.0,0.00019816,3]
[347776253,1736100442131,-500.0,0.00019816,3]
[347776254,1736100442151,-504.55261994,0.00019816,3]
[347776255,1736100442173,-500.0,0.00019816,3]
[347776256,1736100442195,-500.0,0.00019816,3]
[347776257,1736100442217,-500.0,0.00019816,3]
[347776258,1736100442238,-500.0,0.00019816,3]
[347776259,1736100442265,-500.0,0.00019816,3]
[347776260,1736100442287,-469.02197918,0.00019816,3]
[347776261,1736100442309,-500.0,0.00019816,3]
[347776262,1736100442331,-500.0,0.00019816,3]
[347776263,1736100442353,-500.0,0.00019816,3]
[347776264,1736100442380,-500.0,0.00019816,3]
[347776265,1736100442402,-500.0,0.00019816,3]
[347776266,1736100442424,-500.0,0.00019816,3]
[347776267,1736100442446,-500.0,0.00019816,3]
[347776268,1736100442468,-500.0,0.00019816,3]
[347776269,1736100442490,-500.0,0.00019816,3]
[347776270,1736100442514,-478.04794181,0.00019816,3]
[347776271,1736100442542,-500.0,0.00019816,3]
[347776272,1736100442565,-500.0,0.00019816,3]
[347776273,1736100442588,-500.0,0.00019816,3]
[347776274,1736100442609,-500.0,0.00019816,3]
[347776275,1736100442631,-244.165772,0.00019816,3]
[347776276,1736100442651,-500.0,0.00019816,3]
[347776277,1736100442674,-500.0,0.00019816,3]
[347776278,1736100442697,-500.0,0.00019816,3]
[347776279,1736100442718,-500.0,0.00019816,3]
[347776280,1736100442740,-265.317686,0.00019826,2]
[347776281,1736100442762,-3235.0,0.0002,2]
[347776282,1736100442785,-2964.17,0.00020089,3]
[347776283,1736100442808,-432.57,0.00020089,3]
[347776284,1736100442831,-500.0,0.00020089,3]
[347776285,1736100442855,-500.0,0.00020089,3]
[347776286,1736100442878,-500.0,0.0002032,3]
[347776287,1736100442900,-500.0,0.0002032,3]
[347776288,1736100442923,-500.0,0.0002032,3]
[347776289,1736100442945,-500.0,0.0002032,3]
[347776290,1736100442969,-768.5,0.00020321,3]
[347776291,1736100442992,-833.92,0.00020321,3]
[347776292,1736100443015,-2964.17,0.00020363,3]
[347776293,1736100443039,-500.0,0.00020363,3]
[347776294,1736100443061,-500.0,0.00020363,3]
[347776295,1736100443087,-500.0,0.00020594,3]
[347776296,1736100443110,-768.5,0.00020595,3]
[347776297,1736100443133,-833.92,0.00020595,3]
[347776298,1736100443155,-2964.17,0.00020637,3]
[347776299,1736100443178,-500.0,0.00020637,3]
[347776300,1736100443201,-500.0,0.00020637,3]
[347776301,1736100443222,-150.0,0.00020843,2]
[347776302,1736100443246,-500.0,0.00020868,3]
[347776303,1736100443269,-768.5,0.00020869,3]
[347776304,1736100443292,-833.92,0.00020869,3]
[347776305,1736100443318,-2964.17,0.00020911,3]
[347776306,1736100443344,-500.0,0.00020911,3]
[347776307,1736100443367,-500.0,0.00020911,3]
[347776308,1736100443392,-150.0,0.00021,2]
[347776309,1736100443414,-500.0,0.00021035,3]
[347776310,1736100443436,-500.0,0.00021035,3]